Cogmind - Beta 13 @@@ ROGUE MODE // 2024.03.31 @ 15:38:31 Player: Helta Result: Destroyed by S-10 Pest with Light Assault Rifle Performance ------------- Evolutions (0) 0 Regions Visited (1) 200 Robots Destroyed (11) 55 Value Destroyed (294) 294 Prototype IDs (0) 0 Alien Tech Used (0) 0 Bonus (0) 0 TOTAL SCORE: 549 Bonus ------- None Cogmind --------- Core Integrity 0/250 Matter 289/300 Energy 125/125 System Corruption 0% Temperature Cool (0) Movement Core (100) Ox1 Location -10/Materials Parts ------- > --- POWER (1) -------- Light Ion Engine > --- PROPULSION (2) --- (None) > --- UTILITY (2) ------ Signal Interpreter Hacking Suite > --- WEAPON (2) ------- Light Assault Rifle > --- INVENTORY (5) ---- Ion Engine Light Ion Engine Large Storage Unit Core Shielding Tractor Beam Peak State ------------ > --- POWER ------------ Ion Engine > --- PROPULSION ------- Light Treads Light Treads > --- UTILITY ---------- Hacking Suite Tractor Beam > --- WEAPON ----------- EM Pulse Gun Light Assault Rifle > --- INVENTORY -------- Light Ion Engine Light Ion Engine Medium Laser [Rating: 9] Favorites ----------- Power Light Ion Engine Engine Light Ion Engine Propulsion Light Treads Treads Light Treads Utility Hacking Suite Device Tractor Beam Storage Large Storage Unit Processor Signal Interpreter Hackware Hacking Suite Weapon EM Pulse Gun Energy Gun EM Pulse Gun Ballistic Gun Light Assault Rifle Build | -11 -10 ------- Run | Yrd Mat Slots Evolved . | . . Power . | . . Propulsion . | . . Utility . | . . Weapon . | . . Parts Attached 14 | 6 8 Power 3 | 1 2 Engine 3 | 1 2 Core . | . . Reactor . | . . Propulsion 2 | 2 . Treads 2 | 2 . Leg . | . . Wheel . | . . Hover . | . . Flight . | . . Utility 4 | . 4 Device 1 | . 1 Storage 1 | . 1 Processor 1 | . 1 Hackware 1 | . 1 Protection . | . . Artifact . | . . Weapon 5 | 3 2 Energy Gun 3 | 2 1 Energy Cannon . | . . Ballistic Gun 2 | 1 1 Ballistic Cannon . | . . Launcher . | . . Special Weapon . | . . Impact Weapon . | . . Slashing Weapon . | . . Piercing Weapon . | . . Special Melee Weapon . | . . Unidentified Prototypes . | . . Parts Lost 5 | . 5 Power 1 | . 1 Propulsion 2 | . 2 Utility . | . . Weapon 2 | . 2 Highest Loss Streak 3 | . 3 To Critical Strikes . | . . Average Slot Usage (%) 95 | . 95 Engine 13 | . 13 Treads 27 | . 27 Device 2 | . 2 Storage 4 | . 4 Processor 5 | . 5 Hackware 12 | . 12 Energy Gun 17 | . 17 Ballistic Gun 8 | . 8 Naked Turns . | . . Heaviest Build 28 | 7 28 Greatest Support 40 | 40 40 Greatest Overweight (x) . | . . Average Overweight (x) . | . . Largest Inventory Capacity 15 | 5 15 Average Capacity 7 | 5 8 Most Carried 6 | 2 6 Average Carried 3 | 1 4 Final Capacity 5 | 5 5 Final Carried 5 | 2 5 Class Distribution -------------------- 100% | Mutant Dominant Class ---------------- Mutant | -10/Materials Resources | -11 -10 ----------- Run | Yrd Mat Matter Collected 325 | 182 143 Remotely 20 | . 20 Salvage Created 323 | . 323 Parts 23 | . 23 Haulers Intercepted . | . . Recyclers Shooed . | . . Parts Field Recycled . | . . Retrieved Matter . | . . Parts Self-Destructed . | . . Prevented . | . . Kills | -11 -10 ------- Run | Yrd Mat Combat Hostiles Destroyed 7 | . 7 Melee 1 | . 1 Guns 4 | . 4 AOE 2 | . 2 Classes Destroyed 5 | . 5 Mechanic 1 | . 1 Operator 1 | . 1 Watcher 2 | . 2 Swarmer 2 | . 2 Grunt 5 | . 5 Best Kill Streak 3 | . 3 Combat Bots Only 2 | . 2 Max Kills in Single Turn 3 | . 3 Gunslinging . | . . Exploded 2 | . 2 Melee 1 | . 1 Uniques/NPCs Destroyed . | . . Combat | -11 -10 -------- Run | Yrd Mat Hostile Shots Fired 80 | . 80 Missed 20 | . 20 Damage Taken 784 | . 784 Core 251 | . 251 Absorbed by Shields . | . . Core Remaining (%) 100 | 100 . Volleys Fired 49 | . 49 Largest 2 | . 2 Hottest 90 | . 90 Shots Fired 69 | . 69 Gun 69 | . 69 Cannon . | . . Launcher . | . . Special . | . . Kinetic 16 | . 16 Thermal 29 | . 29 Explosive . | . . Electromagnetic 24 | . 24 Robot Hit Streak 6 | . 6 Robot Miss Streak 4 | . 4 Penetration Max . | . . Secondary Targets . | . . Shots Hit Robots 37 | . 37 Core Hits 17 | . 17 Critical Kills . | . . Critical Parts Destroyed . | . . Critical Strikes 2 | . 2 Burn 2 | . 2 Melee Attacks . | . . Impact . | . . Slashing . | . . Piercing . | . . Sneak Attacks . | . . Combat Hostiles . | . . Follow-up Attacks . | . . Damage Inflicted 727 | . 727 Guns 483 | . 483 Cannons . | . . Explosions 229 | . 229 Melee . | . . Ramming 15 | . 15 Kinetic 28 | . 28 Thermal 374 | . 374 Explosive 79 | . 79 Electromagnetic 231 | . 231 Impact . | . . Slashing . | . . Piercing . | . . Highest Corruption . | . . Average Corruption . | . . Corruption Purged . | . . Corruption Blocked . | . . Overload Shots . | . . Overflow Damage 18 | . 18 Projectiles . | . . Explosions 18 | . 18 Melee . | . . Knockbacks . | . . Impact . | . . Kinetic . | . . Secondary . | . . Self-Inflicted Damage 143 | . 143 Shots 2 | . 2 Rammed 5 | . 5 Targets Rammed 5 | . 5 Kicked . | . . Crushed . | . . Highest Temperature 460 | . 460 Average Temperature 191 | . 191 Received Heat Transfer 294 | . 294 Effects 11 | . 11 Shutdowns 3 | . 3 Energy Bleed 1 | . 1 Damage (minor) 2 | . 2 Damage (major) 5 | . 5 Siege Activations . | . . Robots Corrupted . | . . Combat Hostiles . | . . Parts Fried . | . . Impact Corruptions . | . . Robots Melted . | . . Combat Hostiles . | . . Parts Melted 4 | . 4 Heat Transferred 1064 | . 1064 Parts Sabotaged . | . . Parts Stolen . | . . Parts Stripped . | . . Power Chain Reactions 2 | . 2 Alert | -11 -10 ------- Run | Yrd Mat Peak Influence 229 | . 229 Initial . | . . Average 55 | . 67 Maximum Alert Level 1 | . 1 Low Security (%) 97 | 100 96 Level 1 2 | . 3 Level 2 . | . . Level 3 . | . . Level 4 . | . . Level 5 . | . . High Security . | . . Max Security . | . . Squads Dispatched 3 | . 3 Investigation 2 | . 2 Extermination . | . . Reinforcement 1 | . 1 Assault . | . . Garrison . | . . Intercept . | . . Searches Triggered . | . . Construction Impeded . | . . Haulers Reinforced . | . . Active Scanning Responses . | . . Cargo Convoy Interrupts . | . . Stealth | -11 -10 --------- Run | Yrd Mat Distress Signals 1 | . 1 Communications Jammed . | . . Distress Signals . | . . Times Spotted 18 | . 18 Peak Tracking Total 4 | . 4 Tactical Retreats 1 | . 1 Traps | -11 -10 ------- Run | Yrd Mat Traps Triggered 1 | . 1 Indirectly . | . . Trap Hack Attempts . | . . Triggered . | . . Disarmed . | . . Reprogrammed . | . . Reused . | . . Traps Extracted . | . . Installed . | . . Triggered . | . . Machines | -11 -10 ---------- Run | Yrd Mat Machines Disabled 3 | . 3 Max in Single Turn 2 | . 2 Machines Repaired . | . . Machines Dismantled . | . . Machines Sabotaged . | . . Overloaded Fab Kills . | . . Hacking | -11 -10 --------- Run | Yrd Mat Machines Accessed 4 | . 4 Terminals 2 | . 2 Fabricators . | . . Repair Stations . | . . Recycling Units 2 | . 2 Scanalyzers . | . . Garrison Access . | . . Total Hacks 13 | . 13 Successful 6 | . 6 Failed 7 | . 7 Catastrophic 1 | . 1 Database Lockouts . | . . Manual . | . . Terminals 8 | . 8 Fabricators . | . . Repair Stations . | . . Recycling Units 5 | . 5 Scanalyzers . | . . Garrison Access . | . . Terminal Hacks 2 | . 2 Recall Investigation 1 | . 1 Recall Reinforcements 1 | . 1 Fabricator Hacks . | . . Repair Station Hacks . | . . Recycling Unit Hacks 4 | . 4 Process 1 | . 1 Report Inventory 3 | . 3 Scanalyzer . | . . Garrison Access Hacks . | . . Unauthorized Hacks . | . . Terminals . | . . Fabricators . | . . Repair Stations . | . . Recycling Units . | . . Scanalyzers . | . . Garrison Access . | . . Data Cores Recovered 1 | . 1 Used 1 | . 1 Hacking Detections 3 | . 3 Full Trace Events 1 | . 1 Feedback Events . | . . Feedback Blocked . | . . Robot Schematics Acquired . | . . Robots Built . | . . Authchips . | . . Time . | . . Total Robot Build Rating . | . . Part Schematics Acquired . | . . Parts Built . | . . Authchips . | . . Time . | . . Total Part Build Rating . | . . Parts Repaired . | . . Time . | . . Parts Recycled . | . . Recycled Matter 6 | . 6 Retrieved Matter . | . . Retrieved Components . | . . Parts Scanalyzed . | . . Part Schematics Acquired . | . . Parts Damaged . | . . Bothacking | -11 -10 ------------ Run | Yrd Mat Used RIF Installer . | . . Robots Hacked . | . . Non-combat . | . . Combat . | . . Robot Hacks Applied . | . . Relay Couplers Released . | . . Fabnet Peak Effective % . | . . Robots Rewired . | . . Allies Hacked . | . . Hacks Repelled . | . . Allies | -11 -10 -------- Run | Yrd Mat Total Allies . | . . Largest Group . | . . Highest-Rated Group . | . . Highest-Rated Ally . | . . Total Orders . | . . Ally Attacks . | . . Total Damage . | . . Kills . | . . Allies Corrupted . | . . Allies Melted . | . . Intel | -11 -10 ------- Run | Yrd Mat Robot Analysis Total . | . . Derelict Logs Recovered . | . . Drone Launches . | . . Drone Recoveries . | . . Exploration | -11 -10 ------------- Run | Yrd Mat Turns Passed 832 | 153 679 Spaces Moved 405 | 95 310 Core 10 | 8 2 Treads 395 | 87 308 Legs . | . . Wheels . | . . Hover . | . . Flight . | . . Fastest Speed 50 | 50 50 Average Speed 157 | 150 159 Slowest Speed 160 | 160 160 Overloaded Moves . | . . Propulsion Burnouts . | . . Robots Hopped . | . . Cave-ins Triggered . | . . Exploration Rate (%) 25 | 6 44 Regions Visited 1 Branch Regions . Pre-discovered Areas . | . . Known Exits Taken . | . . Unknown Exits Taken 1 | 1 . Scrap Searched . | . . Spaces Dug . | . . Terrain Destroyed 30 | . 30 Melee . | . . Projectile . | . . AOE 30 | . 30 Terrain Rammed . | . . Walls Destroyed . | . . Machines Disabled . | . . Actions | -11 -10 --------- Run | Yrd Mat Total 529 | 102 427 Wait 46 | . 46 Move 404 | 94 310 Hop . | . . Pick Up 9 | 2 7 Fast Attach 6 | 5 1 Attach 4 | . 4 Detach 1 | . 1 Swap 4 | 1 3 Drop 1 | . 1 Fire 49 | . 49 Melee . | . . Ram 3 | . 3 Kick . | . . Crush 2 | . 2 Escape Stasis . | . . Rewire . | . . Trap . | . . Miscellaneous . | . . Route ------- -11/Scrapyard -10/Materials (discovered 1 exit: *Mat) History --------- Turn | Location | Event 5 | -11/Scrapyard | Discovered new exit (range 16) 154 | -11/Scrapyard | Entered Materials 311 | -10/Materials | Build established: Mutant 512 | -10/Materials | Discovered new exit (range 16) 563 | -10/Materials | Identified exit to Materials 761 | -10/Materials | Core integrity fell below 50% 811 | -10/Materials | Core integrity fell below 20% 833 | -10/Materials | Destroyed by S-10 Pest with Light Assault Rifle Last Messages --------------- 00808_ S-10 Pest destroyed. 00809_ Overheating: Hacking Suite damaged (-4). 00809_ Overheating: Lgt. Treads damaged (-4). 00809_ Overheating: Med. Laser damaged (-9). 00809_ Overheating: Lgt. Treads damaged (-12). 00810_ Overheating: Energy bleed (-30). 00813_ Med. Laser destroyed. 00819_ Lgt. Treads destroyed. 00820_ Acquired 10 matter. 00821_ R-06 Scavenger collects Flight Unit. 00823_ Slammed into S-10 Pest. 00826_ Lgt. Treads destroyed. 00826_ R-06 Scavenger collects Lgt. Ion Engine. 00826_ Slammed into S-10 Pest. 00827_ Signal Interpreter broken. 00827_ Destabilizing: Short circuit. 00828_ Slammed into S-10 Pest. 00828_ S-10 Pest destroyed. [Achievement: Fist Fight] 00830_ Acquired Lgt. Assault Rifle. Map ----- +----------------------------------------------------+ | ?????????????#????#???????????????????????????? | | ?????????????# ?? ???????????????????????????? | | ?????????????# ??T ???????????????????????????? | | ?????????????# ?? ????????????????????? ###### | | ?????????????# ?? ??????????????????? | | ?????????????# ?? ??????????????????? | | ?????????????# ##+#??????????????????? | | ?????????????# #???????????#+#????????###### | | ?????????????# #??????????? ?????????????? | | ??????? ??#### #???????????" ?????????????? | | ???????? ??????????? ?????????????? | | ???????? ^ ^ #??????????? ?????????????? | | ????????""" """ #??????????? ?????????????? | | ????????""" """ #############+###???????????? | | ?????# """ """ # # ############# | | ?????# # # | | ?????# % + "Y" # | | ?????## ##### # """ # | | ??????# ?????# ###########| % ############# | | ??????# ???????# #????????####+######????????? | | ??????# ????????# #????????# #????????? | | ????????????????# #????????# #????????? | | ????????????????# #????????#= "" """ ########## | | ????????????????# #????????# """ """ # # | | ????????????????#%########## """%""" # """ # | | ????????????????# s%%=@ + # # | | ????????????????# ########## # ! | | ????????????????# #????????# # | | ????????????????# #????????########### # | | ???????????????##/#######???????????##[ | | ???????????????# #???????????# | | ???????????????# #???????????# | | ???????????????#""" ##################/#### | | ???????????????#""" # | | ???????????????#""" + | | ???????????????#""" # | | ???????????????#""" ####################### | | ???????????????# #?????????????????????? | | ???????????????# #?????????????????????? | | ???????????????##########?????????????????????? | | ??????????????????????????????????????????????? | | ??????????????????????????????????????????????? | | | | | | | | | | | | | | | | | +----------------------------------------------------+ Best States ------------- Heat Dissipation 25 Energy Generation 10 Energy Capacity 250 Matter Stores 300 Matter Capacity 300 Sight Range 16 Terrain Scan Density 10 Evasion (%) 50 Recoil Reduction 2 Offensive Hacking 10 Item Schematics ----------------- None Robot Schematics ------------------ None Fabricated ------------ Nothing Alien Tech Used ----------------- None Achievements -------------- Dynamic Key Fist Fight Challenges ------------ None Game ------ Seed FlyingGrenadePod Manual? 0 Play Time 00:12:38 Cumulative 2.4 hours Start 2024.03.31 @ 15:29:53 End 2024.03.31 @ 15:38:31 Sessions 1 Manual Loads 0 Difficulty Rogue Special Mode None Game No. 4 Rogue 4 Adventurer 0 Explorer 0 Win Type - Total 0 Types 0/0/0/0/0/0/0/0/0 Lore% 10 Gallery% 7 Achievement% 8 Wizard Run 0 Options --------- Layout 1 ASCII 0 Keyboard 0 Movement Mouse Keybinds 0 Fullscreen 1 Font 32/SmallcapsGlow Map View 130x35 Zoom Use 0% Tactical HUD 1 Map Filters NONE Filters NONE Steam 1 RUN: 47d68ac0-fb05-4f49-af5d-3fae3d5b8480